bitfinex/quotes_SOLUSD_20241213
["timestamp","ask_amount","ask_price","bid_price","bid_amount"]
[1734101754736,13.22219506,223.53,223.46,18.22219506]
[1734101754954,13.22219506,223.52,223.46,5.0]
[1734101755842,6.1053,223.63,223.49,13.22219506]
[1734101756040,13.22219506,223.57,223.49,13.22219506]
[1734101756223,13.22219506,223.56,223.49,13.22219506]
[1734101756430,13.22219506,223.54,223.47,44.40879506]
[1734101756640,13.22219506,223.53,223.47,31.1866]
[1734101757627,13.22219506,223.53,223.46,18.22219506]
[1734101757628,13.22219506,223.52,223.46,5.0]
[1734101758252,13.22219506,223.53,223.46,18.22219506]
[1734101758431,13.22219506,223.53,223.46,38.22219506]
[1734101759634,24.027864,223.62,223.46,38.22219506]
[1734101759635,13.22219506,223.55,223.48,13.22219506]
[1734101759921,13.22219506,223.56,223.49,13.22219506]
[1734101760555,13.22219506,223.54,223.47,13.22219506]
[1734101761165,13.22219506,223.55,223.48,13.22219506]
[1734101761420,13.22219506,223.59,223.51,13.22219506]
[1734101761627,13.22219506,223.6,223.53,13.22219506]
[1734101761959,13.22219506,223.6,223.49,7.6661]
[1734101761960,13.22219506,223.61,223.54,13.22219506]
[1734101762150,13.22219506,223.6,223.53,13.22219506]
[1734101762334,13.22219506,223.61,223.54,13.22219506]
[1734101762651,13.22219506,223.61,223.53,13.22219506]
[1734101763028,13.22219506,223.61,223.54,13.22219506]
[1734101763223,13.22219506,223.64,223.56,13.22219506]
[1734101763440,13.22219506,223.64,223.57,13.22219506]
[1734101763664,13.22219506,223.63,223.56,13.22219506]
[1734101764230,13.22219506,223.64,223.57,13.22219506]
[1734101764961,13.22219506,223.64,223.56,13.22219506]
[1734101765244,13.22219506,223.63,223.56,13.22219506]
[1734101765448,13.22219506,223.63,223.55,13.22219506]
[1734101766358,13.22219506,223.59,223.52,0.67078921]
[1734101766641,11.30209,223.69,223.52,20.0]
[1734101766642,13.22219506,223.56,223.52,20.0]
[1734101766974,13.22219506,223.58,223.52,20.0]
[1734101767033,13.22219506,223.56,223.52,20.0]
[1734101767240,13.22219506,223.56,223.49,7.6661]
[1734101768137,13.22219506,223.56,223.49,20.88829506]
[1734101768653,13.22219506,223.58,223.5,13.22219506]
[1734101769027,13.22219506,223.6,223.52,13.22219506]
[1734101769254,13.22219506,223.6,223.53,13.22219506]
[1734101770076,13.22219506,223.61,223.54,13.22219506]
[1734101770620,13.22219506,223.6,223.53,13.22219506]
[1734101770855,13.22219506,223.6,223.54,23.776884]
[1734101771237,13.22219506,223.61,223.54,36.99907906]
[1734101772054,13.22219506,223.62,223.54,36.99907906]
[1734101773242,13.22219506,223.62,223.55,13.22219506]
[1734101774246,13.22219506,223.59,223.53,29.40619506]
[1734101774661,13.22219506,223.62,223.54,13.22219506]
[1734101774861,13.22219506,223.62,223.55,13.22219506]
[1734101775077,15.0,223.76,223.55,13.22219506]
[1734101775078,1.5485,223.74,223.61,13.22219506]
[1734101775255,13.22219506,223.71,223.63,13.22219506]
[1734101775442,13.22219506,223.71,223.64,13.22219506]
[1734101775759,16.5202,223.8,223.63,36.99907906]
[1734101775760,1.5202,223.8,223.63,36.99907906]
[1734101775943,13.22219506,223.67,223.66,20.0]
[1734101777058,13.22219506,223.67,223.66,43.776884]
[1734101777247,13.22219506,223.67,223.66,20.0]
[1734101777566,13.22219506,223.67,223.66,43.776884]
[1734101778165,13.22219506,223.67,223.66,43.902374]
[1734101778529,13.22219506,223.67,223.66,43.776884]
[1734101778834,13.22219506,223.67,223.62,23.776884]
[1734101779054,13.22219506,223.63,223.6,8.175]
[1734101779365,13.22219506,223.61,223.6,10.07708177]
[1734101779657,13.22219506,223.61,223.6,8.175]
[1734101780241,20.0,223.78,223.61,23.902374]
[1734101780457,13.22219506,223.62,223.61,23.902374]
[1734101781437,13.22219506,223.74,223.61,23.902374]
[1734101781764,13.22219506,223.62,223.61,23.902374]
[1734101781993,13.22219506,223.62,223.6,19.3556]
[1734101782153,13.22219506,223.61,223.6,43.132484]
[1734101782654,13.22219506,223.61,223.6,1.646]
[1734101783164,20.0,223.73,223.6,1.646]
[1734101783413,13.22219506,223.61,223.6,2.31658888]
[1734101783677,13.22219506,223.61,223.6,3.54702456]
[1734101783769,13.22219506,223.61,223.6,1.646]
[1734101784248,13.22219506,223.61,223.6,12.8266]
[1734101784450,13.22219506,223.61,223.6,38.62999856]
[1734101786613,13.22219506,223.61,223.6,36.728974]
[1734101786799,13.22219506,223.61,223.6,38.63438445]
[1734101787264,13.22219506,223.61,223.6,38.50889445]
[1734101788556,13.22219506,223.61,223.6,38.63438445]
[1734101788740,13.22219506,223.62,223.6,38.63438445]
[1734101788937,13.22219506,223.64,223.63,0.12549]
[1734101789180,13.22219506,223.68,223.65,43.902374]
[1734101789354,13.22219506,223.68,223.67,23.902374]
[1734101789672,13.22219506,223.69,223.67,25.80778445]
[1734101789974,13.22219506,223.69,223.68,26.47816963]
[1734101790767,13.22219506,223.69,223.68,37.65476963]
[1734101791266,13.22219506,223.7,223.68,37.65476963]
[1734101791444,13.22219506,223.7,223.69,25.68229445]
[1734101791959,13.22219506,223.7,223.69,1.90541045]
[1734101792157,13.22219506,223.7,223.68,11.1766]
[1734101792463,13.22219506,223.69,223.68,11.1766]
[1734101793335,13.22219506,223.7,223.68,35.078974]
[1734101794258,6.0965,223.83,223.68,35.078974]
[1734101794259,6.0965,223.83,223.69,0.25098]
[1734101794461,6.0965,223.83,223.68,35.74935405]
[1734101794462,6.0965,223.83,223.71,43.902374]
[1734101794648,13.22219506,223.73,223.71,43.902374]
[1734101794970,13.75670556,223.72,223.71,20.0]
[1734101795135,0.5345105,223.72,223.71,20.0]
[1734101795341,0.5345105,223.72,223.71,43.902374]
[1734101795639,13.75670556,223.72,223.71,55.077474]
[1734101796769,13.75670556,223.72,223.71,31.1751]
[1734101797767,13.75670556,223.72,223.7,1.5686]
[1734101798073,13.22219506,223.71,223.68,0.12549]
[1734101798272,13.22219506,223.7,223.69,20.0]
[1734101798474,13.22219506,223.71,223.7,20.0]
[1734101798771,13.75670556,223.72,223.7,20.0]
[1734101799478,0.5345105,223.72,223.71,23.902374]
[1734101799869,1.05e-05,223.72,223.71,35.202964]
[1734101801969,1.05e-05,223.72,223.71,35.87316361]
[1734101802884,1.05e-05,223.72,223.71,50.73175867]
[1734101803089,13.22219506,223.78,223.75,0.12549]
[1734101803272,13.22219506,223.78,223.77,43.902374]
[1734101804058,13.22219506,223.78,223.77,20.0]
[1734101804266,13.22219506,223.78,223.76,35.074974]
[1734101804565,13.22219506,223.77,223.76,35.074974]
[1734101805349,13.22219506,223.78,223.76,35.074974]
[1734101805654,13.22219506,223.79,223.78,20.0]
[1734101807175,13.22219506,223.79,223.76,11.1726]
[1734101807393,13.22219506,223.77,223.76,11.1726]
[1734101808172,13.22219506,223.77,223.74,20.0]
[1734101808369,13.22219506,223.76,223.74,20.0]
[1734101808574,13.22219506,223.76,223.75,20.0]
[1734101810579,13.22219506,223.76,223.71,2.653622]
[1734101810797,13.22219506,223.72,223.71,2.653622]
[1734101810972,13.22219506,223.72,223.69,11.1758]
[1734101811155,13.22219506,223.7,223.69,11.1758]
[1734101811872,13.22219506,223.7,223.66,11.1776]
[1734101812067,13.22219506,223.68,223.66,11.1776]
[1734101812820,13.22219506,223.7,223.66,11.84802579]
[1734101812968,13.22219506,223.71,223.66,11.84802579]
[1734101813282,13.22219506,223.71,223.7,20.0]
[1734101816238,13.22219506,223.72,223.7,43.902374]
[1734101816449,13.22219506,223.73,223.71,11.1751]
[1734101817183,1.528,223.86,223.74,20.0]
[1734101817387,1.528,223.86,223.75,20.0]
[1734101817388,13.22219506,223.85,223.75,20.0]
[1734101818169,13.22219506,223.76,223.75,20.0]
[1734101818403,13.22219506,223.76,223.72,24.57266963]
[1734101818404,13.22219506,223.76,223.73,11.1737]
[1734101818687,13.22219506,223.74,223.73,11.1737]
[1734101821102,13.22219506,223.75,223.73,11.1737]
[1734101821306,13.22219506,223.75,223.73,35.076074]
[1734101821476,13.22219506,223.78,223.73,11.1737]
[1734101822595,13.22219506,223.77,223.73,11.1737]
[1734101823895,13.22219506,223.78,223.74,23.902374]
[1734101824109,13.22219506,223.85,223.77,20.0]
[1734101824110,13.22219506,223.79,223.77,20.0]
[1734101824275,13.22219506,223.8,223.77,20.0]
[1734101825278,13.22219506,223.79,223.77,20.0]
[1734101825478,13.22219506,223.79,223.78,20.0]
[1734101830279,13.22219506,223.81,223.79,35.073474]
[1734101830487,1.5736,223.92,223.78,20.0]
[1734101830488,13.22219506,223.8,223.78,20.0]
[1734101830701,13.22219506,223.79,223.78,20.0]
[1734101833316,8.43517214,223.79,223.78,20.0]
[1734101835595,8.43517214,223.8,223.78,20.0]
[1734101837092,8.43517214,223.81,223.78,20.0]
[1734101837417,8.43517214,223.8,223.78,20.0]
[1734101838931,1.5736,223.92,223.81,23.902374]
[1734101839120,8.43517214,223.85,223.81,23.902374]
[1734101840128,8.43517214,223.84,223.81,23.902374]
[1734101840318,1.5736,223.92,223.83,23.902374]
[1734101840489,8.43517214,223.86,223.83,23.902374]
[1734101841285,8.43517214,223.87,223.83,23.902374]
[1734101841715,8.43517214,223.91,223.87,43.902374]
[1734101841895,0.5698101,223.96,223.87,43.902374]
[1734101841896,8.43517214,223.92,223.88,20.66979883]
[1734101842229,8.43517214,223.92,223.89,23.902374]
[1734101842423,0.5698101,223.96,223.89,23.902374]
[1734101842424,8.43517214,223.93,223.89,23.902374]
[1734101843311,0.5698101,223.96,223.9,0.66976622]
[1734101843603,8.43517214,223.94,223.91,23.902374]
[1734101843714,8.43517214,223.95,223.91,23.902374]
[1734101844011,8.43517214,223.93,223.9,20.66976622]
[1734101844227,8.43517214,223.93,223.9,20.0]
[1734101844464,0.5698101,223.96,223.91,24.69762729]
[1734101844613,8.43517214,223.94,223.91,24.69762729]
[1734101844795,8.43517214,223.94,223.91,24.57213729]
[1734101844990,8.43517214,223.94,223.91,23.902374]
[1734101845332,8.43517214,223.93,223.91,23.902374]
[1734101845687,8.43517214,223.93,223.91,23.776884]
[1734101846104,8.43517214,223.92,223.9,20.0]
[1734101846311,8.43517214,223.91,223.87,20.0]
[1734101846512,8.43517214,223.88,223.87,20.12549]
[1734101846801,8.43517214,223.88,223.79,115.87696198]
[1734101846802,8.43517214,223.88,223.79,12.7877]
[1734101847020,8.43517214,223.83,223.79,12.7877]
[1734101847747,8.43517214,223.82,223.79,1.6169]
[1734101848030,8.43517214,223.8,223.77,1.76825689]
[1734101848196,8.43517214,223.78,223.74,4.0]
[1734101848398,8.43517214,223.77,223.74,4.0]
[1734101848598,8.43517214,223.78,223.74,4.0]
[1734101849203,13.18300072,223.77,223.74,4.0]
[1734101849605,13.18300072,223.77,223.75,2.6455764]
[1734101850126,13.18300072,223.76,223.74,4.0]
[1734101850518,13.18300072,223.75,223.74,4.0]
[1734101850695,13.18300072,223.76,223.74,4.0]
[1734101851093,13.18300072,223.8,223.75,0.12549]
[1734101851324,6.5952,223.88,223.77,20.0]
[1734101851325,13.18300072,223.81,223.77,20.0]
[1734101851893,13.18300072,223.81,223.78,23.776884]
[1734101853905,13.18300072,223.79,223.77,20.0]
[1734101854331,13.18300072,223.8,223.77,20.0]
[1734101854531,13.18300072,223.81,223.77,43.776884]
[1734101855125,13.18300072,223.8,223.77,43.776884]
[1734101856524,13.18300072,223.81,223.77,43.776884]
[1734101857539,13.18300072,223.82,223.78,0.12549]
[1734101857711,1.6419,223.92,223.8,0.25098]
[1734101858031,13.18300072,223.86,223.82,23.902374]
[1734101858214,1.6419,223.92,223.82,23.902374]
[1734101858215,13.18300072,223.87,223.82,23.902374]
[1734101858727,0.5698101,223.96,223.84,23.902374]
[1734101858900,13.18300072,223.91,223.86,23.902374]
[1734101859609,13.18300072,223.9,223.86,23.902374]
[1734101859809,13.18300072,223.87,223.83,20.0]
[1734101860022,13.18300072,223.84,223.8,23.902374]
[1734101860211,0.12549,223.95,223.8,23.902374]
[1734101860212,20.0,223.93,223.8,23.902374]
[1734101860634,13.18300072,223.83,223.8,23.902374]
[1734101862028,13.18300072,223.83,223.8,0.12549]
[1734101862223,13.18300072,223.82,223.8,0.12549]
[1734101862546,13.18300072,223.85,223.81,20.0]
[1734101863235,0.12549,223.93,223.81,20.0]
[1734101863450,0.12549,223.93,223.79,23.776884]
[1734101863644,13.18300072,223.81,223.79,23.776884]
[1734101864335,0.12549,223.93,223.79,20.0]
[1734101864552,13.18300072,223.8,223.79,20.0]
[1734101864835,13.18300072,223.8,223.77,23.902374]
[1734101865025,13.18300072,223.81,223.77,23.902374]
[1734101865822,20.0,223.91,223.77,23.902374]
[1734101866027,13.18300072,223.83,223.77,23.902374]
[1734101868534,13.18300072,223.8,223.77,23.902374]
[1734101868732,13.18300072,223.8,223.79,20.0]
[1734101869842,13.18300072,223.8,223.74,4.0]
[1734101870022,13.18300072,223.76,223.74,4.0]
[1734101871147,13.18300072,223.76,223.75,23.776884]
[1734101872652,13.18300072,223.76,223.74,4.0]
[1734101872824,13.18300072,223.75,223.74,24.0]
[1734101873737,13.18300072,223.75,223.74,4.0]
[1734101873852,26.36600144,223.75,223.74,4.0]
[1734101874352,26.36600144,223.75,223.63,16.40483563]
[1734101874658,1.6455,223.78,223.58,19.43050072]
[1734101874659,13.18300072,223.64,223.58,24.40576198]
[1734101875351,13.18300072,223.64,223.59,0.12549]
[1734101875740,13.18300072,223.64,223.58,17.4288]
[1734101875933,13.18300072,223.64,223.59,23.902374]
[1734101876759,13.18300072,223.64,223.62,20.0]
[1734101877546,13.18300072,223.65,223.63,23.776884]
[1734101877763,13.18300072,223.74,223.63,23.776884]
[1734101877764,13.18300072,223.68,223.63,23.776884]
[1734101877922,13.18300072,223.68,223.66,20.0]
[1734101878559,13.18300072,223.67,223.66,20.0]
[1734101879122,13.18300072,223.68,223.66,20.0]
[1734101879434,13.18300072,223.69,223.66,20.0]
[1734101879639,13.18300072,223.7,223.67,23.776884]
[1734101880336,13.18300072,223.69,223.67,23.776884]
[1734101880957,13.18300072,223.68,223.66,20.0]
[1734101881265,13.18300072,223.7,223.67,20.0]
[1734101882933,13.18300072,223.68,223.67,20.0]
[1734101883538,13.18300072,223.69,223.67,20.0]
[1734101883938,13.18300072,223.68,223.65,20.0]
[1734101884134,13.18300072,223.66,223.65,20.0]
[1734101884663,13.18300072,223.67,223.65,20.0]
[1734101884846,13.18300072,223.66,223.65,20.0]
[1734101885737,13.18300072,223.68,223.66,23.776884]
[1734101886037,13.18300072,223.7,223.66,23.776884]
[1734101886242,13.18300072,223.71,223.69,20.0]
[1734101887256,13.18300072,223.7,223.69,20.0]
[1734101890545,13.18300072,223.72,223.69,43.776884]
[1734101890740,13.18300072,223.73,223.7,23.776884]
[1734101891162,13.18300072,223.71,223.7,23.776884]
[1734101891370,7.8899,223.85,223.73,20.0]
[1734101891556,13.18300072,223.77,223.74,23.776884]
[1734101891751,13.18300072,223.76,223.74,23.776884]
[1734101892428,13.18300072,223.75,223.7,11.1756]
[1734101892486,13.18300072,223.71,223.7,20.0]
[1734101893846,13.18300072,223.71,223.68,23.776884]
[1734101894148,13.18300072,223.72,223.68,23.776884]
[1734101894343,21.07290072,223.85,223.7,23.776884]
[1734101894544,13.18300072,223.75,223.7,23.776884]
[1734101894760,13.18300072,223.75,223.71,0.12549]
[1734101895186,13.18300072,223.74,223.71,0.12549]
[1734101895471,13.18300072,223.74,223.7,23.776884]
[1734101895642,13.18300072,223.71,223.69,20.0]
[1734101896032,29.99999811,223.84,223.69,20.0]
[1734101896033,13.18300072,223.7,223.69,20.0]
[1734101896469,13.18300072,223.7,223.66,11.1776]
[1734101896652,13.18300072,223.68,223.66,11.1776]
[1734101897062,13.18300072,223.68,223.66,20.0]
[1734101898056,0.12549,223.79,223.66,20.0]
[1734101898267,13.18300072,223.68,223.66,20.0]
[1734101899149,13.18300072,223.68,223.64,23.776884]
[1734101899354,13.18300072,223.71,223.66,23.776884]
[1734101899546,13.18300072,223.72,223.66,23.776884]
[1734101899849,13.18300072,223.71,223.66,23.776884]
[1734101900054,20.0,223.79,223.65,11.97412277]
[1734101900055,13.18300072,223.7,223.65,11.1781]
[1734101900256,13.18300072,223.69,223.65,11.1781]
[1734101900557,13.18300072,223.7,223.66,23.776884]
[1734101901246,13.18300072,223.71,223.66,23.776884]
[1734101901835,13.18300072,223.7,223.66,23.776884]
[1734101901952,13.18300072,223.69,223.66,23.776884]
[1734101902267,13.18300072,223.69,223.65,11.1781]
[1734101902569,13.18300072,223.7,223.65,11.1781]
[1734101903053,20.0,223.82,223.7,23.776884]
[1734101903259,13.18300072,223.74,223.7,23.776884]
[1734101904456,13.18300072,223.73,223.7,23.776884]
[1734101905014,20.0,223.82,223.7,23.776884]
[1734101905174,13.18300072,223.75,223.7,23.776884]
[1734101905467,13.18300072,223.76,223.7,23.776884]
[1734101905668,13.18300072,223.75,223.7,23.776884]
[1734101905862,13.18300072,223.72,223.71,20.0]
[1734101906260,13.18300072,223.73,223.71,20.0]
[1734101907544,21.07290072,223.85,223.71,20.0]
[1734101907545,13.18300072,223.74,223.71,20.0]
[1734101907747,13.18300072,223.75,223.72,23.776884]
[1734101907957,7.8899,223.85,223.72,23.776884]
[1734101908229,13.18300072,223.77,223.73,0.12549]
[1734101908371,13.18300072,223.75,223.72,23.776884]
[1734101908565,13.18300072,223.74,223.72,23.776884]
[1734101909157,13.18300072,223.75,223.72,23.776884]
[1734101909354,13.18300072,223.76,223.72,23.776884]
[1734101910162,13.18300072,223.75,223.72,23.776884]
[1734101910362,13.18300072,223.73,223.7,21.5915]
[1734101910557,13.18300072,223.72,223.71,23.776884]
[1734101910978,13.18300072,223.73,223.71,23.776884]
[1734101912761,13.18300072,223.74,223.71,23.776884]
[1734101914187,13.18300072,223.73,223.71,23.776884]
[1734101914559,7.8899,223.85,223.71,23.776884]
[1734101914892,13.18300072,223.73,223.71,23.776884]
[1734101915473,13.18300072,223.72,223.7,20.0]
[1734101915664,13.18300072,223.71,223.65,23.776884]
[1734101915982,13.18300072,223.68,223.64,1.5751]
[1734101916986,13.18300072,223.69,223.66,20.0]
[1734101917174,13.18300072,223.69,223.67,23.776884]
[1734101917362,13.18300072,223.68,223.67,23.776884]
[1734101917771,13.18300072,223.68,223.64,1.5751]
[1734101918005,13.18300072,223.65,223.62,8.95220148]
[1734101918283,13.18300072,223.64,223.62,6.2164]
[1734101918482,13.18300072,223.64,223.59,12.8001]
[1734101918689,13.18300072,223.62,223.59,12.8001]
[1734101918985,13.18300072,223.61,223.59,12.8001]
[1734101919185,13.18300072,223.61,223.59,1.6191]
[1734101919390,13.18300072,223.6,223.57,13.14626198]
[1734101919579,13.18300072,223.6,223.57,6.1693]
[1734101919773,13.18300072,223.62,223.57,6.1693]
[1734101920085,13.18300072,223.63,223.58,11.1816]
[1734101920269,20.0,223.73,223.58,11.1816]
[1734101920463,13.18300072,223.63,223.59,23.902374]
[1734101921498,13.18300072,223.74,223.59,23.902374]
[1734101921499,13.18300072,223.66,223.6,11.1806]
[1734101921692,13.18300072,223.66,223.63,20.0]
[1734101921989,13.18300072,223.66,223.6,11.1806]
[1734101922191,13.18300072,223.66,223.61,23.776884]
[1734101922675,7.6645,223.76,223.63,23.776884]
[1734101922866,13.18300072,223.7,223.66,20.0]
[1734101923066,13.18300072,223.73,223.67,23.776884]
[1734101923317,13.18300072,223.75,223.7,20.0]
[1734101923497,13.18300072,223.74,223.7,20.0]
[1734101924521,13.18300072,223.73,223.7,20.0]
[1734101925574,13.18300072,223.73,223.68,0.12549]
[1734101925765,13.18300072,223.72,223.68,0.12549]
[1734101927266,13.18300072,223.7,223.67,34.953884]
[1734101927894,13.18300072,223.71,223.67,34.953884]
[1734101928089,13.18300072,223.72,223.67,34.953884]
[1734101928592,7.8135,223.82,223.68,0.12549]
[1734101928889,7.8135,223.82,223.69,23.776884]
[1734101928890,13.18300072,223.75,223.69,23.776884]
[1734101930289,7.8135,223.82,223.69,23.776884]
[1734101930470,13.18300072,223.74,223.69,23.776884]
[1734101930805,7.8135,223.82,223.69,23.776884]
[1734101930977,13.18300072,223.74,223.69,23.776884]
[1734101931293,8.4396092,223.74,223.68,24.027864]
[1734101931674,6.0913,223.87,223.72,23.776884]
[1734101931875,8.4396092,223.79,223.73,0.12549]
[1734101933169,13.18189357,223.79,223.73,0.12549]
[1734101933378,13.18189357,223.77,223.72,24.44712033]
[1734101933673,13.18189357,223.73,223.72,23.776884]
[1734101934701,13.18189357,223.73,223.68,11.1762]
[1734101934874,13.18189357,223.73,223.69,23.776884]
[1734101935084,13.18189357,223.72,223.68,11.1762]
[1734101935382,11.1683,223.85,223.68,11.1762]
[1734101935569,13.18189357,223.74,223.68,11.1762]
[1734101935992,13.18189357,223.74,223.69,2.73850673]
[1734101936482,13.18189357,223.74,223.7,23.776884]
[1734101936992,13.18189357,223.73,223.7,23.776884]
[1734101937381,13.18189357,223.72,223.7,23.776884]
[1734101937586,13.18189357,223.74,223.7,23.776884]
[1734101937782,13.18189357,223.73,223.7,23.776884]
[1734101938801,13.18189357,223.74,223.7,23.776884]
[1734101939292,13.18189357,223.75,223.7,23.776884]
[1734101939974,13.18189357,223.74,223.7,23.776884]
[1734101940272,13.18189357,223.72,223.7,23.776884]
[1734101940501,13.18189357,223.71,223.67,23.776884]
[1734101940672,15.0,223.81,223.66,36.95877757]
[1734101940673,13.18189357,223.73,223.66,36.95877757]
[1734101940898,13.18189357,223.74,223.66,36.95877757]
[1734101941078,13.18189357,223.74,223.67,13.18189357]
[1734101941277,13.18189357,223.73,223.66,13.18189357]
[1734101941480,13.18189357,223.72,223.64,14.72979357]
[1734101942281,0.12549,223.78,223.66,13.18189357]
[1734101942282,13.18189357,223.73,223.66,13.18189357]
[1734101943287,0.12549,223.78,223.64,1.5479]
[1734101943288,13.18189357,223.72,223.65,13.18189357]
[1734101943496,13.18189357,223.72,223.65,36.95877757]
[1734101943801,13.18189357,223.67,223.6,13.18189357]
[1734101943983,13.18189357,223.65,223.59,1.5205]
[1734101944682,15.0,223.74,223.59,14.70239357]
[1734101944882,13.18189357,223.71,223.64,13.18189357]
[1734101945092,13.18189357,223.72,223.65,13.18189357]
[1734101945513,13.18189357,223.73,223.66,13.18189357]
[1734101946094,1.5621,223.79,223.71,13.18189357]
[1734101946293,14.74399357,223.79,223.72,13.18189357]
[1734101946690,13.18189357,223.8,223.73,13.18189357]
[1734101946898,13.18189357,223.79,223.72,13.18189357]
[1734101947617,13.18189357,223.78,223.71,13.18189357]
[1734101948106,13.18189357,223.74,223.67,13.18189357]
[1734101948306,13.18189357,223.72,223.65,36.95877757]
[1734101948514,13.18189357,223.71,223.63,33.18189357]
[1734101948707,13.18189357,223.71,223.63,13.18189357]
[1734101949015,13.18189357,223.68,223.61,20.17086324]
[1734101949212,13.18189357,223.67,223.6,24.36219357]
[1734101949592,13.18189357,223.67,223.6,13.18189357]
[1734101949794,13.18189357,223.65,223.59,1.5205]
[1734101950099,13.18189357,223.65,223.58,15.80110937]
[1734101950309,13.18189357,223.63,223.56,20.17086324]
[1734101950499,13.18189357,223.64,223.56,20.17086324]
[1734101950714,15.0,223.71,223.59,13.18189357]
[1734101950917,13.18189357,223.67,223.6,13.18189357]
[1734101951411,13.18189357,223.67,223.61,13.18189357]
[1734101951713,13.18189357,223.67,223.6,13.18189357]
[1734101952118,47.29729357,223.74,223.61,13.18189357]
[1734101952119,13.18189357,223.68,223.61,13.18189357]
[1734101952293,13.18189357,223.67,223.6,13.18189357]
[1734101953109,13.18189357,223.67,223.6,18.18189357]
[1734101954188,15.0,223.72,223.6,5.0]
[1734101954189,13.18189357,223.66,223.6,5.0]
[1734101954414,13.18189357,223.63,223.6,5.0]
[1734101954612,15.0,223.69,223.6,5.0]
[1734101954613,13.18189357,223.61,223.6,5.0]
[1734101954986,13.30738357,223.61,223.6,5.0]
[1734101956003,13.18189357,223.61,223.6,5.0]
[1734101957109,13.18189357,223.62,223.6,5.0]
[1734101957313,13.18189357,223.61,223.6,5.0]
[1734101960427,13.18189357,223.62,223.6,5.0]
[1734101960809,28.30738168,223.61,223.6,5.0]
[1734101961197,28.18189168,223.61,223.6,5.0]
[1734101961672,28.30738168,223.61,223.6,5.0]
[1734101962322,52.20975568,223.61,223.6,5.0]
[1734101962520,39.02786211,223.61,223.6,5.0]
[1734101962697,28.43287168,223.61,223.6,5.0]
[1734101962894,28.30738168,223.61,223.6,5.0]
[1734101963808,13.30738357,223.61,223.6,5.0]
[1734101964222,28.30738168,223.61,223.6,5.0]
[1734101964415,13.30738357,223.61,223.6,5.0]
[1734101965227,13.18189357,223.61,223.6,5.0]
[1734101966734,13.18189357,223.62,223.6,5.0]
[1734101966934,13.18189357,223.61,223.6,5.0]
[1734101967304,13.18189357,223.63,223.6,5.0]
[1734101967642,28.18189357,223.67,223.6,18.18189357]
[1734101967843,13.18189357,223.67,223.6,18.18189357]
[1734101968001,13.18189357,223.67,223.6,5.0]
[1734101968620,33.18189357,223.66,223.6,5.0]
[1734101970123,13.18189357,223.69,223.61,13.18189357]
[1734101970306,13.18189357,223.68,223.61,13.18189357]
[1734101970517,13.18189357,223.7,223.63,13.18189357]
[1734101970707,13.18189357,223.7,223.6,5.0]
[1734101970708,13.18189357,223.72,223.64,13.18189357]
[1734101971024,13.18189357,223.71,223.63,13.18189357]
[1734101972331,13.18189357,223.72,223.65,18.18189357]
[1734101972736,13.18189357,223.74,223.66,13.18189357]
[1734101973033,13.18189357,223.73,223.65,18.18189357]
[1734101973529,13.18189357,223.73,223.66,13.18189357]
[1734101975829,13.18189357,223.76,223.69,13.18189357]
[1734101976023,13.18189357,223.77,223.7,13.18189357]
[1734101976224,1.509,223.81,223.72,13.18189357]
[1734101976225,13.18189357,223.79,223.72,13.18189357]
[1734101976429,13.18189357,223.8,223.73,13.18189357]
[1734101976727,13.18189357,223.8,223.72,13.18189357]
[1734101977029,13.18189357,223.79,223.72,13.18189357]
[1734101978018,15.0,223.82,223.72,13.18189357]
[1734101978212,13.18189357,223.8,223.73,13.18189357]
[1734101978414,13.18189357,223.79,223.72,13.18189357]
[1734101978811,26.16729811,223.87,223.75,13.18189357]
[1734101979006,13.18189357,223.85,223.77,13.18189357]
[1734101979328,15.0,223.91,223.7,0.12549]
[1734101979329,13.18189357,223.87,223.8,13.18189357]
[1734101979502,13.18189357,223.89,223.82,13.18189357]
[1734101979700,13.18189357,223.9,223.83,13.18189357]
[1734101980341,13.18189357,223.9,223.8,1.5576]
[1734101980342,13.18189357,223.86,223.8,1.5576]
[1734101980533,13.18189357,223.84,223.8,1.5576]
[1734101980881,13.18189357,223.85,223.8,1.5576]
[1734101981737,13.18189357,223.91,223.83,13.18189357]
[1734101981944,20.0,223.89,223.83,13.18189357]